Cogmind - Beta 17.1 @@@ ROGUE MODE // 2026.08.31 @ 21:21:17 Player: ATOM Result: Destroyed by G-34 Mercenary with Small Laser Performance ------------- Evolutions (0) 0 Regions Visited (1) 200 Robots Destroyed (24) 120 Value Destroyed (477) 477 Prototype IDs (1) 20 Alien Tech Used (0) 0 Bonus (5500) 5500 TOTAL SCORE: 6317 Bonus ------- Prayed to X0-1V1 5000 Major X0-1V1 Interference 500 Cogmind --------- Core Integrity 0/250 Matter 285/300 Energy 143/250 System Corruption 0% Temperature Cool (6) Movement Core (450) Ox8 Location -10/Materials Parts ------- > --- POWER (1) -------- Ion Engine > --- PROPULSION (2) --- (None) > --- UTILITY (2) ------ Improved Heat Sink Large Storage Unit > --- WEAPON (4) ------- (None) > --- INVENTORY (15) --- Ion Engine Huge Storage Unit Targeting Computer ECM Suite Peak State ------------ > --- POWER ------------ Ion Engine > --- PROPULSION ------- Light Treads Light Treads > --- UTILITY ---------- Large Storage Unit X0-1V1's Piety Tracker > --- WEAPON ----------- Medium Laser Light Assault Rifle > --- INVENTORY -------- Ion Engine Ion Engine Compact Wheel Improved Heat Sink Large Storage Unit Huge Storage Unit Targeting Computer ECM Suite [Rating: 20] Favorites ----------- Power Ion Engine Engine Ion Engine Propulsion Light Treads Treads Light Treads Leg Aluminum Leg Wheel Compact Wheel Utility Large Storage Unit Device X0-1V1's Piety Tracker Storage Large Storage Unit Weapon Medium Laser Energy Gun Medium Laser Ballistic Gun Light Assault Rifle Launcher Grenade Launcher Special Weapon Mining Laser Build | -11 -10 ------- Run | Yrd Mat Slots Evolved . | . . Power . | . . Propulsion . | . . Utility . | . . Weapon . | . . Parts Attached 19 | 7 12 Power 3 | 1 2 Engine 3 | 1 2 Core . | . . Reactor . | . . Propulsion 5 | 2 3 Treads 2 | 2 . Leg 2 | . 2 Wheel 1 | . 1 Hover . | . . Flight . | . . Utility 5 | 2 3 Device 3 | 1 2 Storage 2 | 1 1 Processor . | . . Hackware . | . . Protection . | . . Artifact . | . . Weapon 6 | 2 4 Energy Gun 1 | 1 . Energy Cannon . | . . Ballistic Gun 3 | 1 2 Ballistic Cannon . | . . Launcher 1 | . 1 Special Weapon 1 | . 1 Impact Weapon . | . . Slashing Weapon . | . . Piercing Weapon . | . . Special Melee Weapon . | . . Unidentified Prototypes 1 | . 1 Parts Lost 11 | . 11 Power 2 | . 2 Propulsion 3 | . 3 Utility 2 | . 2 Weapon 4 | . 4 Highest Loss Streak 6 | . 6 To Critical Strikes . | . . Average Backups 4 | 1 5 Power 1 | . 1 Propulsion . | . . Utility 2 | . 2 Weapon . | . . Tool/Special . | . . Unused Backups 5 | . 5 Power 1 | . 1 Propulsion . | . . Utility 4 | . 4 Weapon . | . . Tool/Special . | . . Average Slot Usage (%) 87 | . 87 Engine 12 | . 12 Treads 20 | . 20 Leg 2 | . 2 Wheel 1 | . 1 Device 12 | . 12 Storage 12 | . 12 Energy Gun 9 | . 9 Ballistic Gun 11 | . 11 Launcher 2 | . 2 Peak Build Rating 20 | 7 20 Average Rating 13 | 5 14 On Entrance 3 | . 7 Avg Prop Armor Cover (%) 12 | . 12 Naked Turns . | . . Heaviest Build 31 | 14 31 Greatest Support 40 | 40 40 Greatest Overweight (x) 10 | . 10 Average Overweight (x) . | . . Largest Inventory Capacity 15 | 8 15 Average Capacity 13 | 7 13 Most Carried 9 | 3 9 Average Carried 4 | 1 5 Final Capacity 15 | 8 15 Final Carried 4 | 2 4 Class Distribution -------------------- 100% | Mutant Dominant Class ---------------- Mutant | -10/Materials Resources | -11 -10 ----------- Run | Yrd Mat Matter Collected 540 | 232 308 Remotely . | . . Salvage Created 532 | 14 518 Parts 45 | 5 40 Haulers Intercepted . | . . Recyclers Shooed . | . . Parts Field Recycled . | . . Retrieved Matter . | . . Parts Self-Destructed . | . . Prevented . | . . Parts Restored . | . . Kills | -11 -10 ------- Run | Yrd Mat Combat Hostiles Destroyed 15 | . 15 Melee 1 | . 1 Guns 10 | . 10 Cannons 2 | . 2 AOE 2 | . 2 Classes Destroyed 7 | 1 6 Worker 4 | . 4 Builder 1 | . 1 Tunneler 1 | 1 . Operator 1 | . 1 Watcher 2 | . 2 Swarmer 5 | . 5 Grunt 10 | . 10 Best Kill Streak 3 | 1 3 Combat Bots Only 3 | . 3 Max Kills in Single Turn 3 | 1 3 Gunslinging . | . . Exploded 2 | . 2 Melee 1 | . 1 Uniques/NPCs Destroyed . | . . Combat | -11 -10 -------- Run | Yrd Mat Hostile Shots Fired 134 | . 134 Missed 34 | . 34 Hits 100 | . 100 Projectile 100 | . 100 Damage Taken 1268 | . 1268 Core 255 | . 255 Absorbed by Shields . | . . Core Remaining (%) 100 | 100 . Volleys Fired 80 | 1 79 Largest 2 | 2 2 Hottest 100 | 70 100 Shots Fired 134 | 2 132 Gun 126 | 2 124 Cannon . | . . Launcher 5 | . 5 Special 3 | . 3 Kinetic 68 | 1 67 Thermal 61 | 1 60 Explosive 5 | . 5 Electromagnetic . | . . Robot Hit Streak 7 | 1 7 Robot Miss Streak 6 | . 6 Penetration Max . | . . Secondary Targets 2 | . 2 Max Gunslinging Chain 1 | . 1 Shots Hit Robots 67 | 1 66 Core Hits 35 | 1 34 Critical Kills . | . . Critical Parts Destroyed . | . . Critical Strikes 4 | . 4 Burn 4 | . 4 Melee Attacks . | . . Impact . | . . Slashing . | . . Piercing . | . . Sneak Attacks . | . . Combat Hostiles . | . . Follow-up Attacks . | . . Damage Inflicted 985 | 13 972 Guns 786 | 13 773 Cannons . | . . Explosions 137 | . 137 Melee . | . . Ramming 14 | . 14 Kinetic 379 | . 379 Thermal 455 | 13 442 Explosive 137 | . 137 Electromagnetic . | . . Impact . | . . Slashing . | . . Piercing . | . . Highest Corruption . | . . Average Corruption . | . . Corruption Purged . | . . Corruption Blocked . | . . Overload Shots . | . . Overflow Damage . | . . Projectiles . | . . Explosions . | . . Melee . | . . Knockbacks . | . . Impact . | . . Kinetic . | . . Secondary . | . . Self-Inflicted Damage 145 | . 145 Shots 4 | . 4 Rammed 2 | . 2 Targets Rammed 3 | . 3 Kicked . | . . Crushed 1 | . 1 Highest Temperature 223 | 30 223 Average Temperature 53 | 19 53 Received Heat Transfer 453 | . 453 Siege Activations . | . . Martial Activations . | . . Shielding Activations . | . . Robots Disrupted . | . . Combat Hostiles . | . . Robots Corrupted . | . . Combat Hostiles . | . . Parts Fried . | . . Impact Corruptions . | . . Robots Melted . | . . Combat Hostiles . | . . Parts Melted 1 | . 1 Heat Transferred 1617 | 37 1580 Parts Sabotaged . | . . Parts Stolen . | . . Parts Stripped . | . . Power Chain Reactions . | . . Alert | -11 -10 ------- Run | Yrd Mat Maximum Alert Level . | . . Low Security (%) 100 | 100 100 Level 1 . | . . Level 2 . | . . Level 3 . | . . Level 4 . | . . Level 5 . | . . High Security . | . . Max Security . | . . Peak Influence 102 | 5 102 Initial . | . . Average 21 | . 22 Influence Increases 498 | 5 493 Destroy 0b10 Robot/C 300 | . 300 Destroy 0b10 Robot/NC 45 | 5 40 Destroy Leader 64 | . 64 Successful Hack 22 | . 22 Disable Machine 15 | . 15 Destroy Structure 37 | . 37 Partial Spotted 15 | . 15 Influence Decreases 438 | 5 433 Time Decay 338 | 5 333 Lost Part 100 | . 100 Squads Dispatched 4 | . 4 Investigation 2 | . 2 Extermination . | . . Reinforcement 2 | . 2 Assault . | . . Garrison . | . . Intercept . | . . Searches Triggered . | . . Construction Impeded . | . . Haulers Reinforced . | . . Active Scanning Responses . | . . Cargo Convoy Interrupts . | . . Stealth | -11 -10 --------- Run | Yrd Mat Distress Signals 2 | . 2 Communications Jammed . | . . Distress Signals . | . . Times Spotted 31 | . 31 Peak Tracking Total 3 | . 3 Tactical Retreats . | . . Traps | -11 -10 ------- Run | Yrd Mat Traps Triggered 4 | . 4 Indirectly . | . . Trap Hack Attempts . | . . Triggered . | . . Disarmed . | . . Reprogrammed . | . . Reused . | . . Traps Extracted . | . . Installed . | . . Triggered . | . . Machines | -11 -10 ---------- Run | Yrd Mat Machines Disabled 1 | . 1 Max in Single Turn 1 | . 1 Machines Repaired . | . . Machines Dismantled . | . . Machines Sabotaged . | . . Overloaded Fab Kills . | . . Hacking | -11 -10 --------- Run | Yrd Mat Machines Accessed 6 | . 6 Terminals 3 | . 3 Fabricators . | . . Repair Stations 1 | . 1 Recycling Units 2 | . 2 Scanalyzers . | . . Garrison Access . | . . Total Hacks 10 | . 10 Successful 7 | . 7 Failed 3 | . 3 Catastrophic . | . . Database Lockouts . | . . Manual 1 | . 1 Terminals 3 | . 3 Fabricators . | . . Repair Stations 4 | . 4 Recycling Units 3 | . 3 Scanalyzers . | . . Garrison Access . | . . Terminal Hacks 3 | . 3 Emergency Access Points 1 | . 1 Recycling Unit Index 1 | . 1 Registered Components 1 | . 1 Fabricator Hacks . | . . Repair Station Hacks 1 | . 1 Scan Component 1 | . 1 Recycling Unit Hacks 3 | . 3 Report Inventory 2 | . 2 Retrieve Components 1 | . 1 Scanalyzer . | . . Garrison Access Hacks . | . . Unauthorized Hacks . | . . Terminals . | . . Fabricators . | . . Repair Stations . | . . Recycling Units . | . . Scanalyzers . | . . Garrison Access . | . . Data Cores Recovered . | . . Used . | . . Hacking Detections 4 | . 4 Full Trace Events 1 | . 1 Feedback Events . | . . Feedback Blocked . | . . Robot Schematics Acquired . | . . Robots Built . | . . Authchips . | . . Time . | . . Total Robot Build Rating . | . . Part Schematics Acquired . | . . Parts Built . | . . Authchips . | . . Time . | . . Total Part Build Rating . | . . Part Studies Acquired . | . . Parts Repaired . | . . Time . | . . Parts Recycled . | . . Recycled Matter . | . . Retrieved Matter . | . . Retrieved Components 7 | . 7 Parts Scanalyzed . | . . Part Schematics Acquired . | . . Parts Damaged . | . . Bothacking | -11 -10 ------------ Run | Yrd Mat Used RIF Installer . | . . Robots Hacked . | . . Non-combat . | . . Combat . | . . Robot Hacks Applied . | . . Relay Couplers Released . | . . Fabnet Peak Effective % . | . . Robots Rewired . | . . Allies Hacked . | . . Hacks Repelled . | . . Allies | -11 -10 -------- Run | Yrd Mat Total Allies . | . . Largest Group . | . . Highest-Rated Group . | . . Highest-Rated Ally . | . . Total Orders . | . . Ally Attacks . | . . Total Damage . | . . Kills . | . . Allies Corrupted . | . . Allies Melted . | . . X0-1V1 Amusement Gains 104 | . 104 Average Entertainment 13 | . 13 Good Acts 2 | . 2 Bad Acts 3 | . 3 Intel | -11 -10 ------- Run | Yrd Mat Active Infowar (turns) 282 | 37 245 Seismic 282 | 37 245 Robot Analysis Total . | . . Derelict Logs Recovered . | . . Drone Launches . | . . Drone Recoveries . | . . Exploration | -11 -10 ------------- Run | Yrd Mat Turns Passed 1811 | 115 1696 Spaces Moved 883 | 63 820 Core 17 | 4 13 Treads 681 | 59 622 Legs 68 | . 68 Wheels 117 | . 117 Hover . | . . Flight . | . . Fastest Speed 50 | 50 115 Average Speed 166 | 153 167 Slowest Speed 550 | 160 550 Overloaded Moves . | . . Propulsion Burnouts . | . . Robots Hopped . | . . Potential Cave-ins . | . . Cave-ins Triggered . | . . Exploration Rate (%) 48 | 4 92 Regions Visited 1 Branch Regions . Pre-discovered Areas . | . . Known Exits Taken . | . . Unknown Exits Taken 1 | 1 . Scrap Searched . | . . Spaces Dug . | . . Terrain Destroyed 40 | . 40 Melee . | . . Projectile . | . . AOE 40 | . 40 Terrain Rammed 1 | . 1 Walls Destroyed . | . . Machines Disabled . | . . Actions | -11 -10 --------- Run | Yrd Mat Total 1088 | 80 1008 Wait 69 | 1 68 Move 882 | 62 820 Hop . | . . Pick Up 26 | 9 17 Fast Attach . | . . Attach 19 | 7 12 Detach . | . . Swap 3 | . 3 Drop 5 | . 5 Fire 80 | 1 79 Melee . | . . Ram 1 | . 1 Kick . | . . Crush 3 | . 3 Escape Stasis . | . . Rewire . | . . Trap . | . . Miscellaneous . | . . Route ------- -11/Scrapyard -10/Materials (discovered 3 exits: [*Mat x2] / [*Min]) History --------- Turn | Location | Event 4 | -11/Scrapyard | Discovered new exit (range 15) 116 | -11/Scrapyard | Entered Materials 307 | -10/Materials | Build established: Mutant 758 | -10/Materials | Prayed at D.C.S.S. Altar Unit 789 | -10/Materials | Discovered new exit (range 16) 847 | -10/Materials | Weapon slot count permanently improved by X0-1V1 (+1) 1144 | -10/Materials | Discovered new exit (range 14) 1273 | -10/Materials | Discovered new exit (range 15) 1363 | -10/Materials | Core integrity fell below 50% 1718 | -10/Materials | X0-1V1 made a cryptic comment about sterilization and BL-4Z3 1725 | -10/Materials | Weapon slot count temporarily expanded by X0-1V1 (+1) 1784 | -10/Materials | Core integrity fell below 20% 1799 | -10/Materials | X0-1V1 sent hostile G-34 Mercenary (x3) 1812 | -10/Materials | Destroyed by G-34 Mercenary with Small Laser Last Messages --------------- 01733_ U-05 Engineer builds a Wall. 01757_ Aluminum Leg destroyed. 01758_ Assault Rifle destroyed. 01758_ X0-1V1 is amused. 01761_ M-13 Machinist repairs G-34 Mercenary. 01772_ Acquired Mining Laser. 01777_ G-34 Mercenary destroyed. 01785_ X0-1V1's Piety Tracker destroyed. 01785_ X0-1V1 is mildly amused. 01785_ G-34 Mercenary destroyed. 01789_ Acquired 40 matter. 01799_ X0-1V1: "Some new friends to play with." G-34 Mercenary form resolidifies at new position. 01800_ Aluminum Leg destroyed. 01801_ Ion Engine destroyed. X0-1V1's Piety Tracker suddenly appears amidst shimmering waves of color. 01808_ Mining Laser destroyed. 01812_ X0-1V1 chortles! Map ----- +----------------------------------------------------+ | + #??? | | # = #??? | | #### ############ # "Y" #??? | | #### #??????##! # """ #??? | | ## #??????#! + #??? | | # #??????# ########+#??? | | # #??????# #??????# #??? | | # #??????#! #??????# #??? | | ### #??????##! ######## #??? | | """ #???????#### #??? | | "T" #??????????# #??? | | " " ############ """ #??? | | # ?# """ #??? | | # """ """ ## """^ #??? | | # "T" """ ## #??? | | # """ ## = ###? | | + ## ^ =""#? | | % # ## !Y"#? | | % """ # ! ## """ *""#? | | """ # ## """"" *###? | | % """ ############ """"" #??? | | % #??????????#u """"" ###? | | #???######## m""" ###? | | #???# # g ##? | | # #???#! # g ##? | | # #???# + g!@ ##? | | " # #???# " " # ########+###? | | ## ##???# "R" # ##???# % # | | ## #????# """ # ###??# # | | ### #????###### # # #??# # | | #?# #?????????# # # #??# # | | #?# #?????????# # #?## T" # | | ###+###???????# ##?## # | | # #???????### #??######### | | # """ #?????????# #??#####???? | | # """ #?????????# ##??????????? | | + """ #?????????#%#???????????? | | < # """ #?????????? ???????????? | | # """ #?????????? ???????????? | | ### #?????????? ???????????? | | ??#######??????????###??????????? | | ????????????????????????????????? | | ?????????!??????????????????????? | | ????????????????????????????????? | | ????????????????????????????????? | | ????????????????????????????????? | | ????????????????????????????????? | | | | | | | +----------------------------------------------------+ Best States ------------- Heat Dissipation 39 Energy Generation 10 Energy Capacity 250 Matter Stores 300 Matter Capacity 300 Sight Range 16 Terrain Scan Density 10 Evasion (%) 40 Recoil Reduction 2 Item Schematics ----------------- None Robot Schematics ------------------ None Fabricated ------------ Nothing Repaired ---------- Nothing Studied --------- None Alien Tech Used ----------------- None Achievements -------------- None Challenges ------------ None Game ------ Seed PointyFusionCartridge Manual? 0 Play Time 00:16:39 Cumulative 42.2 hours Start 2026.08.31 @ 21:06:29 End 2026.08.31 @ 21:21:17 Sessions 1 Manual Loads 0 Difficulty Rogue Special Mode None Game No. 61 Rogue 61 Adventurer 0 Explorer 0 Win Type - Total 0 Types 0/0/0/0/0/0/0/0/0/0 Lore% 19 Gallery% 24 Achievement% 20 Wizard Run 0 Options --------- Layout 2 ASCII 0 Keyboard 0 Movement Mouse Keybinds 0 Fullscreen 1 Font 16/X11CapsBold Map View 50x49 Zoom Use 0% Tactical HUD 1 Map Filters NONE Filters NONE Steam SD RUN: 5cfb2faa-ef89-40ec-82a8-52028a5d8bad